fUST/lending_fUST_20241111
["ID","MTS","AMOUNT","RATE_DAILY","PERIOD"]
[341952876,1731321043843,-500.0,0.00024999,2]
[341952878,1731321043853,-500.0,0.00024999,2]
[341952880,1731321043862,-500.0,0.00024999,2]
[341952882,1731321043871,-500.0,0.00024999,2]
[341952884,1731321043880,-500.0,0.00024999,2]
[341952886,1731321043889,-633.32508222,0.00025,2]
[341952888,1731321043899,-19038.90342308,0.00025,2]
[341952890,1731321043908,-624.84,0.00025203,2]
[341952892,1731321043919,-624.84,0.00025204,2]
[341952894,1731321043928,-624.84,0.00025204,2]
[341952896,1731321043936,-500.0,0.00025205,2]
[341952898,1731321043945,-500.0,0.00025205,2]
[341952900,1731321043955,-500.0,0.00025205,2]
[341952902,1731321043965,-500.0,0.00025205,2]
[341952904,1731321043974,-500.0,0.00025205,2]
[341952906,1731321043983,-500.0,0.00025205,2]
[341952908,1731321043993,-500.0,0.00025205,2]
[341952910,1731321044002,-500.0,0.00025205,2]
[341952912,1731321044011,-500.0,0.00025205,2]
[341952915,1731321044021,-500.0,0.00025205,2]
[341952917,1731321044030,-500.0,0.00025205,2]
[341952919,1731321044040,-500.0,0.00025205,2]
[341952921,1731321044049,-500.0,0.00025205,2]
[341952922,1731321044061,-500.0,0.00025205,2]
[341952924,1731321044071,-512.35594706,0.00025205,2]
[341952926,1731321044080,-510.64222441,0.00025205,2]
[341952928,1731321044090,-414.84633381,0.00025205,2]
[341952931,1731321044102,-500.0,0.00025205,2]
[341952933,1731321044112,-500.0,0.00025205,2]
[341952935,1731321044122,-500.0,0.00025205,2]
[341952937,1731321044131,-500.0,0.00025205,2]
[341952939,1731321044141,-500.0,0.00025205,2]
[341952941,1731321044150,-500.0,0.00025205,2]
[341952943,1731321044159,-500.0,0.00025205,2]
[341952945,1731321044169,-500.0,0.00025205,2]
[341952947,1731321044179,-153.35085577,0.00025205,2]
[341952949,1731321044188,-500.0,0.00025205,2]
[341952951,1731321044198,-307.19604941,0.00025205,2]
[341953174,1731321046588,-296.19290474,0.00024999,2]
[341953175,1731321046598,-192.80395059,0.00025205,2]
[341953176,1731321046610,-500.0,0.00025205,2]
[341953177,1731321046622,-500.0,0.00025205,2]
[341953178,1731321046632,-500.0,0.00025205,2]
[341953179,1731321046642,-500.0,0.00025205,2]
[341953180,1731321046653,-500.0,0.00025205,2]
[341953181,1731321046664,-500.0,0.00025205,2]
[341953182,1731321046674,-500.0,0.00025205,2]
[341953183,1731321046683,-376.58239924,0.00025205,2]
[341953184,1731321046696,-647.94094405,0.00025205,2]
[341953185,1731321046706,-500.0,0.00025205,2]
[341953186,1731321046716,-500.0,0.00025205,2]
[341953187,1731321046725,-500.0,0.00025205,2]
[341953188,1731321046736,-500.0,0.00025205,2]
[341953189,1731321046745,-500.0,0.00025205,2]
[341953190,1731321046756,-500.0,0.00025205,2]
[341953191,1731321046766,-500.0,0.00025205,2]
[341953192,1731321046776,-500.0,0.00025205,2]
[341953193,1731321046786,-490.71089266,0.00025205,2]
[341953194,1731321046795,-500.0,0.00025205,2]
[341953195,1731321046807,-553.24,0.00025205,2]
[341953197,1731321046817,-500.0,0.00025205,2]
[341953199,1731321046826,-603.2,0.00025205,2]
[341953201,1731321046835,-500.0,0.00025205,2]
[341953203,1731321046844,-382.85745923,0.00025205,2]
[341953205,1731321046854,-500.0,0.00025205,2]
[341953207,1731321046864,-500.0,0.00025205,2]
[341953209,1731321046874,-500.0,0.00025205,2]
[341953211,1731321046883,-500.0,0.00025205,2]
[341953213,1731321046892,-500.0,0.00025205,2]
[341953215,1731321046901,-500.0,0.00025205,2]
[341953217,1731321046910,-500.0,0.00025205,2]
[341953219,1731321046919,-500.0,0.00025205,2]
[341953221,1731321046928,-500.0,0.00025278,2]
[341953223,1731321046937,-500.0,0.00025278,2]
[341953225,1731321046947,-500.0,0.00025278,2]
[341953227,1731321046957,-500.0,0.00025304,2]
[341953229,1731321046966,-502.82096784,0.00025331,2]
[341953231,1731321046976,-624.84,0.00025478,2]
[341953233,1731321046989,-525.17440598,0.00025479,2]
[341953235,1731321046999,-452.29748454,0.00025479,2]
[341953237,1731321047009,-500.0,0.00025479,2]
[341953239,1731321047019,-512.20857647,0.00025479,2]
[341953241,1731321047030,-500.0,0.00025479,2]
[341953243,1731321047039,-563.97293722,0.00025479,2]
[341953245,1731321047050,-500.0,0.00025479,2]
[341953247,1731321047062,-500.0,0.00025479,2]
[341953249,1731321047072,-525.01981729,0.00025479,2]
[341953251,1731321047083,-500.00840385,0.00025479,2]
[341953253,1731321047093,-500.0,0.00025479,2]
[341953255,1731321047103,-500.0,0.00025479,2]
[341953257,1731321047114,-571.41950831,0.00025479,2]
[341953259,1731321047124,-500.0,0.00025479,2]
[341953261,1731321047133,-500.0,0.00025479,2]
[341953263,1731321047143,-500.0,0.00025479,2]
[341953265,1731321047153,-500.0,0.00025479,2]
[341953267,1731321047162,-500.0,0.00025479,2]
[341953269,1731321047171,-500.0,0.00025479,2]
[341953271,1731321047181,-500.0,0.00025479,2]
[341953273,1731321047190,-500.0,0.00025479,2]
[341953275,1731321047201,-500.0,0.00025479,2]
[341953277,1731321047210,-500.0,0.00025479,2]
[341953279,1731321047219,-500.0,0.00025479,2]
[341953281,1731321047228,-500.0,0.00025479,2]
[341953283,1731321047238,-645.93418314,0.00025479,2]
[341953285,1731321047247,-500.0,0.00025479,2]
[341953287,1731321047256,-500.0,0.00025479,2]
[341953289,1731321047266,-500.0,0.00025479,2]
[341953291,1731321047276,-500.0,0.00025479,2]
[341953293,1731321047285,-500.0,0.00025479,2]
[341953295,1731321047294,-565.38995685,0.00025479,2]
[341953297,1731321047303,-500.0,0.00025479,2]
[341953299,1731321047315,-500.0,0.00025479,2]
[341953301,1731321047325,-500.0,0.00025479,2]
[341953303,1731321047334,-500.0,0.00025479,2]
[341953305,1731321047343,-500.0,0.00025479,2]
[341953307,1731321047352,-553.24,0.00025479,2]
[341953309,1731321047362,-500.0,0.00025479,2]
[341953311,1731321047371,-603.2,0.00025479,2]
[341953313,1731321047381,-500.0,0.00025479,2]
[341953316,1731321047391,-500.0,0.00025479,2]
[341953318,1731321047400,-500.0,0.00025479,2]
[341953320,1731321047409,-500.0,0.00025479,2]
[341953322,1731321047419,-508.73711328,0.00025479,2]
[341953324,1731321047428,-500.0,0.00025479,2]
[341953326,1731321047437,-500.0,0.00025479,2]
[341953328,1731321047446,-500.0,0.00025559,2]
[341953330,1731321047456,-500.0,0.00025559,2]
[341953332,1731321047465,-181.924,0.00025584,10]
[341953334,1731321047474,-420.0,0.00025636,2]
[341953336,1731321047484,-624.84,0.00025752,2]
[341953338,1731321047493,-500.0,0.00025753,2]
[341953340,1731321047502,-500.0,0.00025753,2]
[341953342,1731321047512,-500.0,0.00025753,2]
[341953344,1731321047521,-500.0,0.00025753,2]
[341953346,1731321047531,-500.0,0.00025753,2]
[341953348,1731321047540,-528.11309388,0.00025753,2]
[341953350,1731321047549,-500.0,0.00025753,2]
[341953352,1731321047561,-577.33292876,0.00025753,2]
[341953354,1731321047570,-500.0,0.00025753,2]
[341953356,1731321047580,-500.0,0.00025753,2]
[341953358,1731321047590,-500.0,0.00025753,2]
[341953360,1731321047599,-500.0,0.00025753,2]
[341953362,1731321047613,-500.0,0.00025753,2]
[341953364,1731321047623,-182.60621685,0.00025753,2]
[341953366,1731321047631,-500.0,0.00025753,2]
[341953368,1731321047640,-513.62302211,0.00025753,2]
[341953370,1731321047651,-500.0,0.00025753,2]
[341953372,1731321047660,-500.0,0.00025753,2]
[341953374,1731321047669,-500.0,0.00025753,2]
[341953376,1731321047679,-500.0,0.00025753,2]
[341953378,1731321047689,-500.0,0.00025753,2]
[341953380,1731321047698,-500.0,0.00025753,2]
[341953382,1731321047707,-500.0,0.00025753,2]
[341953384,1731321047717,-500.0,0.00025753,2]
[341953386,1731321047726,-500.0,0.00025753,2]
[341953388,1731321047736,-553.24,0.00025753,2]
[341953390,1731321047745,-603.2,0.00025753,2]
[341953392,1731321047754,-500.0,0.00025753,2]
[341953394,1731321047764,-500.0,0.00025753,2]
[341953396,1731321047773,-500.0,0.00025753,2]
[341953398,1731321047782,-500.0,0.00025753,2]
[341953400,1731321047792,-420.0,0.00025994,2]
[341953402,1731321047802,-393.38,0.00026017,3]
[341953404,1731321047815,-624.84,0.00026026,2]
[341953406,1731321047824,-500.0,0.00026027,2]
[341953408,1731321047834,-500.0,0.00026027,2]
[341953410,1731321047843,-416.35551425,0.00026027,2]
[341953412,1731321047852,-417.96934495,0.00026027,2]
[341953414,1731321047861,-500.0,0.00026027,2]
[341953416,1731321047870,-500.0,0.00026027,2]
[341953418,1731321047880,-500.0,0.00026027,2]
[341953420,1731321047890,-500.0,0.00026027,2]
[341953422,1731321047899,-500.0,0.00026027,2]
[341953424,1731321047909,-500.0,0.00026027,2]
[341953426,1731321047919,-500.0,0.00026027,2]
[341953428,1731321047928,-500.0,0.00026027,2]
[341953430,1731321047938,-500.0,0.00026027,2]
[341953432,1731321047947,-500.0,0.00026027,2]
[341953434,1731321047957,-500.0,0.00026027,2]
[341953436,1731321047967,-500.0,0.00026027,2]
[341953438,1731321047976,-500.0,0.00026027,2]
[341953440,1731321047985,-199.22516489,0.00026027,2]
[341953442,1731321047994,-500.0,0.00026027,2]
[341953444,1731321048004,-500.0,0.00026027,2]
[341953446,1731321048013,-553.24,0.00026027,2]
[341953448,1731321048023,-603.2,0.00026027,2]
[341953450,1731321048033,-500.0,0.00026027,2]
[341953452,1731321048043,-500.0,0.00026027,2]
[341953454,1731321048053,-500.0,0.00026027,2]
[341953456,1731321048066,-624.84,0.000263,2]
[341953459,1731321048076,-500.0,0.00026301,2]
[341953460,1731321048087,-629.64267988,0.00026301,2]
[341953463,1731321048096,-500.0,0.00026301,2]
[341953465,1731321048106,-500.0,0.00026301,2]
[341953466,1731321048116,-500.0,0.00026301,2]
[341953469,1731321048126,-500.0,0.00026301,2]
[341953470,1731321048135,-500.0,0.00026301,2]
[341953472,1731321048145,-500.0,0.00026301,2]
[341953474,1731321048155,-500.0,0.00026301,2]
[341953476,1731321048165,-188.41550578,0.00026301,2]
[341953479,1731321048176,-500.0,0.00026301,2]
[341953481,1731321048186,-500.0,0.00026301,2]
[341953483,1731321048196,-500.0,0.00026301,2]
[341953484,1731321048206,-500.0,0.00026301,2]
[341953486,1731321048217,-500.0,0.00026301,2]
[341953489,1731321048228,-175.85099027,0.00026301,2]
[341953491,1731321048238,-500.0,0.00026301,2]
[341953492,1731321048248,-553.24,0.00026301,2]
[341953495,1731321048258,-603.2,0.00026301,2]
[341953497,1731321048267,-193.44515814,0.00026301,2]
[341953499,1731321048278,-500.0,0.00026301,2]
[341953501,1731321048288,-500.0,0.00026301,2]
[341953503,1731321048298,-384.09292692,0.00026342,2]
[341953505,1731321048311,-624.84,0.00026574,2]
[341953507,1731321048321,-640.22962859,0.00026575,2]
[341953509,1731321048332,-500.0,0.00026575,2]
[341953511,1731321048342,-500.0,0.00026575,2]
[341953513,1731321048353,-578.64522627,0.00026575,2]
[341953515,1731321048363,-500.0,0.00026575,2]
[341953517,1731321048372,-619.97229844,0.00026575,2]
[341953519,1731321048382,-500.0,0.00026575,2]
[341953521,1731321048392,-500.0,0.00026575,2]
[341953523,1731321048402,-500.0,0.00026575,2]
[341953525,1731321048412,-500.0,0.00026575,2]
[341953527,1731321048422,-500.0,0.00026575,2]
[341953529,1731321048431,-500.0,0.00026575,2]
[341953531,1731321048440,-500.0,0.00026575,2]
[341953533,1731321048450,-500.0,0.00026575,2]
[341953535,1731321048459,-553.24,0.00026575,2]
[341953537,1731321048468,-603.2,0.00026575,2]
[341953539,1731321048477,-500.0,0.00026575,2]
[341953541,1731321048486,-500.0,0.00026575,2]
[341953543,1731321048495,-1000.0,0.00026648,2]
[341953545,1731321048504,-1000.0,0.00026648,2]
[341953547,1731321048514,-1000.0,0.00026648,2]
[341953549,1731321048523,-1000.0,0.00026674,2]
[341953551,1731321048532,-624.84,0.00026848,2]
[341953553,1731321048541,-887.43,0.00026849,2]
[341953555,1731321048550,-500.0,0.00026849,2]
[341953557,1731321048561,-500.0,0.00026849,2]
[341953559,1731321048571,-175.0632661,0.00026849,2]
[341953561,1731321048581,-500.0,0.00026849,2]
[341953563,1731321048590,-500.0,0.00026849,2]
[341953565,1731321048600,-500.0,0.00026849,2]
[341953567,1731321048611,-500.0,0.00026849,2]
[341953569,1731321048623,-500.0,0.00026849,2]
[341953571,1731321048633,-519.08502376,0.00026849,2]
[341953573,1731321048643,-500.0,0.00026849,2]
[341953575,1731321048653,-500.0,0.00026849,2]
[341953577,1731321048663,-553.24,0.00026849,2]
[341953579,1731321048673,-603.2,0.00026849,2]
[341953581,1731321048683,-500.0,0.00026849,2]
[341953583,1731321048697,-500.0,0.00026849,2]
[341953585,1731321048708,-279.723082,0.00026921,2]
[341953587,1731321048718,-1000.0,0.00026929,2]
[341953589,1731321048728,-1000.0,0.00026929,2]
[341953591,1731321048737,-508.26795251,0.00027123,2]
[341953593,1731321048747,-500.0,0.00027123,2]
[341953595,1731321048756,-500.0,0.00027123,2]
[341953597,1731321048766,-500.0,0.00027123,2]
[341953599,1731321048775,-385.00000887,0.00027123,2]
[341953601,1731321048784,-500.0,0.00027123,2]
[341953603,1731321048793,-500.0,0.00027123,2]
[341953605,1731321048802,-500.0,0.00027123,2]
[341953607,1731321048820,-500.0,0.00027123,2]
[341953609,1731321048829,-553.24,0.00027123,2]
[341953611,1731321048838,-603.2,0.00027123,2]
[341953613,1731321048847,-500.0,0.00027123,2]
[341953615,1731321048856,-500.0,0.00027123,2]
[341953617,1731321048865,-151.0,0.000272,2]
[341953619,1731321048875,-188.95817546,0.0002736,2]
[341953621,1731321048884,-624.84,0.00027396,2]
[341953623,1731321048894,-214.65172331,0.00027397,2]
[341953625,1731321048903,-500.0,0.00027397,2]
[341953627,1731321048913,-208.01626989,0.00027397,2]
[341953629,1731321048922,-500.0,0.00027397,2]
[341953631,1731321048931,-500.0,0.00027397,2]
[341953633,1731321048941,-500.0,0.00027397,2]
[341953635,1731321048954,-500.0,0.00027397,2]
[341953636,1731321048963,-553.24,0.00027397,2]
[341953637,1731321048972,-603.2,0.00027397,2]
[341953638,1731321048982,-500.0,0.00027397,2]
[341953639,1731321048991,-500.0,0.00027397,2]
[341953640,1731321049000,-214.75671796,0.00027397,2]
[341953641,1731321049009,-500.0,0.00027543,7]
[341953642,1731321049018,-9084.90334161,0.00027666,2]
[341953643,1731321049027,-624.84,0.0002767,2]
[341953649,1731321049154,-624.84,0.0002767,2]
[341953651,1731321049164,-624.84,0.0002767,2]
[341953653,1731321049174,-624.84,0.0002767,2]
[341953655,1731321049184,-625.02,0.0002767,2]
[341953657,1731321049193,-177.79288171,0.00027671,2]
[341953659,1731321049203,-500.0,0.00027671,2]
[341953661,1731321049213,-500.0,0.00027671,2]
[341953664,1731321049223,-500.0,0.00027671,2]
[341953666,1731321049233,-500.0,0.00027671,2]
[341953668,1731321049242,-553.24,0.00027671,2]
[341953670,1731321049251,-603.2,0.00027671,2]
[341953672,1731321049261,-500.0,0.00027671,2]
[341953673,1731321049271,-500.0,0.00027671,2]
[341953675,1731321049280,-587.0,0.00027812,2]
[341953678,1731321049290,-1155.14394218,0.00027852,2]
[341953680,1731321049299,-1127.0,0.00027913,2]
[341953681,1731321049311,-530.0,0.00027913,2]
[341953683,1731321049321,-2391.0,0.00027913,2]
[341953686,1731321049331,-500.0,0.00027945,2]
[341953688,1731321049341,-500.0,0.00027945,2]
[341953690,1731321049351,-500.0,0.00027945,2]
[341953692,1731321049361,-500.0,0.00027945,2]
[341953694,1731321049370,-502.0943382,0.00027945,2]
[341953942,1731321088468,571.29589268,0.00020747,2]
[341953949,1731321409491,1169.27083333,0.00020844,2]
[341953950,1731321721388,1169.27083333,0.00020844,2]
[341953952,1731321740220,237.764619,0.00013973,2]
[341953953,1731321740642,237.764619,0.00020447,2]
[341953954,1731321930926,4501.29399467,0.00020844,2]
[341953955,1731322033702,1169.27083333,0.00020844,2]
[341953971,1731322145169,-1068.85104752,0.00020845,2]
[341953972,1731322147117,-100.41978581,0.00020845,2]
[341953973,1731322160679,1169.27083333,0.00020845,2]
[341953996,1731322232672,-228.018136,0.00023335,2]
[341953997,1731322232682,-174.693309,0.00023636,2]
[341953998,1731322232691,-300.0,0.00024067,2]
[341953999,1731322232700,-300.0,0.00024067,2]
[341954001,1731322232710,-1169.27083333,0.00024067,2]
[341954003,1731322232719,-19292.33496096,0.00024068,2]
[341954005,1731322232730,-1941.76895716,0.00024068,2]
[341954009,1731322232756,-2740.51820804,0.00024068,2]
[341954074,1731322238868,-925.37787384,0.00024068,2]
[341954077,1731322238877,-4617.724492,0.000246,2]
[341954078,1731322238886,-500.0,0.00024657,2]
[341954080,1731322238894,-500.0,0.00024657,2]
[341954082,1731322238903,-449.18992021,0.00024657,2]
[341954084,1731322238912,-500.0,0.00024657,2]
[341954086,1731322238921,-3381.5,0.00024657,2]
[341954088,1731322238929,-150.0,0.00024658,2]
[341954090,1731322238939,-2577.63,0.000247,2]
[341954092,1731322238947,-500.0,0.0002493,2]
[341954094,1731322238957,-500.0,0.0002493,2]
[341954096,1731322238966,-500.0,0.0002493,2]
[341954098,1731322238978,-210.23,0.00024931,2]
[341954100,1731322238987,-500.0,0.00024931,2]
[341954102,1731322238995,-500.0,0.00024931,2]
[341954104,1731322239005,-3381.5,0.00024931,2]
[341954106,1731322239014,-3034.43879162,0.00025,2]
[341954596,1731322243861,-789.77235157,0.00025,2]
[341954598,1731322243871,-205.81950666,0.00025,2]
[341954600,1731322243880,-616.6667,0.00025203,2]
[341954602,1731322243889,-500.0,0.00025203,2]
[341954604,1731322243898,-381.05108846,0.00025203,2]
[341954626,1731322244100,-118.94891154,0.00025203,2]
[341954628,1731322244109,-500.0,0.00025204,2]
[341954631,1731322244119,-387.46102413,0.00025204,2]
[341954633,1731322244130,-112.53897587,0.00025204,2]
[341954635,1731322244139,-344.58039908,0.00025205,2]
[341954637,1731322244148,-500.0,0.00025205,2]
[341954639,1731322244157,-3381.5,0.00025205,2]
[341954641,1731322244166,-150.0,0.00025398,2]
[341954643,1731322244176,-1127.0,0.00025398,2]
[341954646,1731322244186,-530.0,0.00025398,2]
[341954649,1731322244195,-2391.0,0.00025398,2]
[341954652,1731322244205,-500.0,0.00025477,2]
[341954655,1731322244214,-500.0,0.00025477,2]
[341954657,1731322244224,-500.0,0.00025478,2]
[341954659,1731322244234,-500.0,0.00025478,2]
[341954661,1731322244243,-500.0,0.00025479,2]
[341954663,1731322244252,-2951.0810677,0.00025479,2]
[341954665,1731322244264,-430.4189323,0.00025479,2]
[341954667,1731322244273,-500.0,0.0002554,2]
[341954669,1731322244282,-500.0,0.00025751,2]
[341954671,1731322244291,-164.17668835,0.00025751,2]
[341954673,1731322244300,-500.0,0.00025752,2]
[341954675,1731322244310,-403.01091746,0.00025752,2]
[341954677,1731322244322,-500.0,0.00025753,2]
[341954679,1731322244331,-3023.26174234,0.00025753,2]
[341954681,1731322244343,-358.23825766,0.00025753,2]
[341954683,1731322244353,-500.0,0.0002586,2]
[341954685,1731322244362,-500.0,0.0002586,2]
[341954687,1731322244372,-500.0,0.0002586,2]
[341954689,1731322244381,-500.0,0.0002586,2]
[341954691,1731322244392,-500.0,0.0002586,2]
[341954693,1731322244401,-500.0,0.00025871,2]
[341954695,1731322244412,-3200.0,0.00025915,2]
[341954697,1731322244421,-646.213,0.00025915,2]
[341954699,1731322244432,-500.0,0.00026025,2]
[341954701,1731322244442,-500.0,0.00026026,2]
[341954703,1731322244451,-500.0,0.00026027,2]
[341954706,1731322244461,-3381.5,0.00026027,2]
[341954708,1731322244471,-420.0,0.00026097,2]
[341954710,1731322244480,-500.0,0.00026299,2]
[341954712,1731322244489,-500.0,0.000263,2]
[341954714,1731322244499,-500.0,0.00026301,2]
[341954716,1731322244508,-1334.08505576,0.00026301,2]
[341954942,1731322246841,-500.0,0.00024657,2]
[341954944,1731322246851,-500.0,0.00024931,2]
[341954946,1731322246861,-500.0,0.00025205,2]
[341954948,1731322246871,-628.68,0.00025479,2]
[341954950,1731322246881,-2047.41494424,0.00026301,2]
[341954952,1731322246891,-3200.0,0.00026301,2]
[341954955,1731322246901,-420.0,0.00026473,2]
[341954957,1731322246910,-500.0,0.00026573,2]
[341954958,1731322246919,-162.5155202,0.00026574,2]
[341954961,1731322246929,-500.0,0.00026575,2]
[341954962,1731322246938,-3381.5,0.00026575,2]
[341954965,1731322246947,-500.0,0.00026847,2]
[341954967,1731322246956,-500.0,0.00026849,2]
[341954969,1731322246965,-2279.7581078,0.00026849,2]
[341955367,1731322437677,213.988157,0.00013973,2]
[341955368,1731322437934,213.988157,0.00020447,2]
[341957848,1731323280616,1169.27083333,0.00020844,2]
[341957855,1731323346206,-1081.92456986,0.00021489,2]
[341957856,1731323370168,-87.34626347,0.00021489,2]
[341957864,1731323432824,-300.0,0.00023304,2]
[341957865,1731323432833,-300.0,0.00023304,2]
[341957866,1731323432842,-9302.81534214,0.00023305,2]
[341957867,1731323432854,-451.21078593,0.00023305,2]
[341957991,1731323439793,-793.39389295,0.00023305,2]
[341957993,1731323439806,-3942.96016148,0.00023305,2]
[341957995,1731323439816,-152.17768138,0.00023305,2]
[341958008,1731323443449,-1017.09315195,0.00023305,2]
[341958011,1731323443459,-228.0181378,0.00023352,2]
[341958013,1731323443469,-671.7651842,0.00023431,2]
[341958014,1731323443479,-3939.0,0.00023578,2]
[341958015,1731323443489,-500.0,0.0002438,2]
[341958016,1731323443498,-819.00422138,0.00024557,2]
[341958017,1731323443508,-150.0,0.000246,2]
[341958018,1731323443517,-205.81950666,0.00024657,2]
[341958019,1731323443526,-570.92924793,0.00024657,2]
[341958020,1731323443536,-500.0,0.00024657,2]
[341958021,1731323443546,-500.0,0.00024657,2]
[341958022,1731323443556,-503.51775705,0.00024657,2]
[341958023,1731323443565,-500.0,0.00024657,2]
[341958024,1731323443575,-500.0,0.00024657,2]
[341958025,1731323443584,-500.0,0.00024657,2]
[341958026,1731323443594,-500.0,0.00024657,2]
[341958027,1731323443603,-590.6643342,0.00024657,2]
[341958028,1731323443613,-500.0,0.00024657,2]
[341958029,1731323443624,-500.0,0.00024657,2]
[341958030,1731323443633,-500.0,0.00024657,2]
[341958031,1731323443642,-500.0,0.00024657,2]
[341958032,1731323443652,-176.24779699,0.00024657,2]
[341958058,1731323447633,169.0,0.00022,2]
[341958062,1731323579708,192.589341,0.00013973,2]
[341958063,1731323579924,192.589341,0.00020447,2]
[341958242,1731324104953,8000.376832,0.00027,60]
[341958244,1731324216611,1169.27083333,0.00020844,2]
[341958248,1731324390740,173.330406,0.00013973,2]
[341958249,1731324391160,173.330406,0.00020447,2]
[341958250,1731324443238,-991.01068079,0.00021172,2]
[341958253,1731324525518,2264.32599034,0.00031188,30]
[341958256,1731324529010,1169.27083333,0.00020844,2]
[341958257,1731324546140,-1169.27083333,0.000215,2]
[341958258,1731324546161,-1913.06801509,0.00022,2]
[341958260,1731324563143,-111.31941598,0.00022,2]
[341958348,1731324638101,-300.0,0.00024518,2]
[341958350,1731324638111,-300.0,0.00024518,2]
[341958352,1731324638121,-4824.04736207,0.00024519,2]
[341958354,1731324638130,-1169.27083333,0.00024519,2]
[341958357,1731324638145,-1891.81948602,0.000246,2]
[341958470,1731324640056,-892.74187298,0.000246,2]
[341958471,1731324640065,-205.81950667,0.00024657,2]
[341958472,1731324640075,-500.0,0.00024657,2]
[341958473,1731324640085,-500.0,0.00024657,2]
[341958474,1731324640094,-500.0,0.00024657,2]
[341958475,1731324640103,-345.75770418,0.00024657,2]
[341958485,1731324643294,-154.24229582,0.00024657,2]
[341958486,1731324643303,-500.0,0.00024657,2]
[341958487,1731324643313,-500.0,0.00024657,2]
[341958488,1731324643322,-394.45620685,0.00024657,2]
[341958489,1731324643332,-500.0,0.00024657,2]
[341958490,1731324643341,-500.0,0.00024657,2]
[341958491,1731324643350,-488.15369374,0.00024657,2]
[341958526,1731324646232,-11.84630626,0.00024657,2]
[341958528,1731324646242,-174.93924213,0.00024657,2]
[341958530,1731324646252,-106.41390942,0.00024657,2]
[341958535,1731324968939,1169.27083333,0.00020844,2]
[341958536,1731324989217,11057.0,0.0002,2]
[341958542,1731325132789,217.397258,0.00013973,2]
[341958543,1731325133013,217.397258,0.00020447,2]
[341958544,1731325282967,1169.27083333,0.00020844,2]
[341958545,1731325594597,1169.27083333,0.00020844,2]
[341958546,1731325625122,-1169.27083333,0.00021079,2]
[341958547,1731325625147,-68.01576037,0.00023236,2]
[341958548,1731325630085,-178.68757663,0.00023236,2]
[341958549,1731325630107,-802.91032415,0.00023304,2]
[341958553,1731325726891,1000.7,0.00027,60]
[341958556,1731325745136,-1125.26691216,0.00021032,2]
[341958557,1731325745164,-44.00392117,0.00021032,2]
[341958558,1731325799888,108116.42554446,0.00027,60]
[341958586,1731325832240,-300.0,0.00023303,2]
[341958587,1731325832250,-300.0,0.00023303,2]
[341958588,1731325832259,-2867.08324196,0.00023304,2]
[341958626,1731325838552,-2053.44402759,0.00023304,2]
[341958628,1731325838562,-1169.27083333,0.00023304,2]
[341958630,1731325838571,-665.105629,0.00023462,2]
[341958632,1731325838580,-220.979794,0.00023623,2]
[341958634,1731325838591,-2789.3834157,0.00023656,2]
[341958636,1731325838601,-250.0,0.00023656,2]
[341958638,1731325838610,-665.105629,0.00024147,2]
[341958640,1731325838620,-7812.21635549,0.00024152,2]